fUST/lending_fUST_20260115
["ID","MTS","AMOUNT","RATE_DAILY","PERIOD"]
[401969127,1768427451298,-191.490217,0.000221,2]
[401969128,1768427451308,-263.265987,0.000221,2]
[401969129,1768427451318,-263.265987,0.000221,2]
[401969130,1768427451327,-151.0,0.000221,2]
[401969131,1768427451336,-263.265987,0.000221,2]
[401969132,1768427451345,-151.0,0.000221,2]
[401969133,1768427451355,-263.265987,0.000221,2]
[401969134,1768427451364,-151.0,0.000221,2]
[401969135,1768427451373,-151.0,0.000221,2]
[401969136,1768427451384,-757.77374429,0.0002229,2]
[401969137,1768427451393,-714.6,0.00022402,2]
[401969138,1768427451402,-300.0,0.00022466,2]
[401969139,1768427451414,-200.0,0.00022466,2]
[401969140,1768427451423,-864.52541442,0.00022466,2]
[401969141,1768427451434,-750.0,0.00022466,2]
[401969142,1768427451443,-218.833933,0.00022532,2]
[401969143,1768427451453,-200.0,0.00022532,3]
[401969144,1768427451464,-200.0,0.00022532,3]
[401969145,1768427451474,-151.0,0.00022532,2]
[401969146,1768427451484,-2000.0,0.00022844,7]
[401969147,1768427451495,-1322.09450288,0.00022857,2]
[401969148,1768427451506,-10945.40487951,0.00022863,2]
[401969149,1768427451515,-1322.09450288,0.00022896,4]
[401969150,1768427451524,-6621.22891406,0.0002292,2]
[401969151,1768427451533,-1322.09450288,0.00022935,6]
[401969152,1768427451542,-1322.09450288,0.00022974,8]
[401969153,1768427451551,-755.1645066,0.00023001,2]
[401969154,1768427451560,-1322.09450288,0.00023014,10]
[401969155,1768427451569,-450.0,0.00023014,2]
[401969156,1768427451578,-1400.0,0.00023014,2]
[401969157,1768427451587,-260.92385342,0.00023014,2]
[401969158,1768427451596,-850.0,0.00023014,2]
[401969159,1768427451605,-282.150442,0.0002302,2]
[401969160,1768427451613,-282.150442,0.0002302,2]
[401969161,1768427451622,-282.150442,0.0002302,2]
[401969162,1768427451631,-282.150442,0.0002302,2]
[401969163,1768427451640,-151.0,0.0002302,2]
[401969164,1768427451648,-151.0,0.0002302,2]
[401969165,1768427451658,-151.0,0.0002302,2]
[401969166,1768427451668,-151.0,0.0002302,2]
[401969167,1768427451679,-252.547119,0.0002302,2]
[401969168,1768427451689,-151.0,0.0002302,2]
[401969169,1768427451698,-151.0,0.0002302,2]
[401969170,1768427451708,-151.0,0.0002302,2]
[401969171,1768427451717,-250.0,0.0002302,2]
[401969172,1768427451726,-250.0,0.0002302,2]
[401969173,1768427451736,-151.0,0.0002302,2]
[401969174,1768427451747,-297.43886801,0.0002302,2]
[401969175,1768427451756,-250.0,0.0002302,2]
[401969176,1768427451766,-250.0,0.0002302,2]
[401969177,1768427451775,-294.03317915,0.0002302,2]
[401969178,1768427451786,-250.0,0.0002302,2]
[401969179,1768427451796,-283.61044671,0.0002302,2]
[401969180,1768427451805,-250.0,0.0002302,2]
[401969181,1768427451817,-250.0,0.0002302,2]
[401969182,1768427451827,-250.0,0.0002302,2]
[401969183,1768427451836,-250.0,0.0002302,2]
[401969184,1768427451845,-250.0,0.0002302,2]
[401969185,1768427451854,-461.67526834,0.0002302,2]
[401969186,1768427451866,-250.0,0.0002302,2]
[401969187,1768427451877,-250.0,0.0002302,2]
[401969188,1768427451887,-2230.315306,0.0002302,2]
[401969189,1768427451896,-160.0,0.0002302,2]
[401969190,1768427451906,-250.0,0.0002302,2]
[401969191,1768427451915,-250.0,0.0002302,2]
[401969192,1768427451924,-151.0,0.0002302,2]
[401969193,1768427451933,-160.0,0.0002302,2]
[401969194,1768427451942,-168.3888056,0.0002302,2]
[401969195,1768427451952,-273.43146715,0.0002302,2]
[401969196,1768427451961,-151.0,0.0002302,2]
[401969197,1768427451970,-250.0,0.0002302,2]
[401969198,1768427451980,-151.0,0.0002302,2]
[401969199,1768427451990,-174.61919141,0.0002302,2]
[401969200,1768427452000,-164.08273023,0.0002302,2]
[401969201,1768427452009,-151.0,0.0002302,2]
[401969202,1768427452022,-168.3888056,0.0002302,2]
[401969203,1768427452031,-250.0,0.0002302,2]
[401969204,1768427452040,-151.0,0.0002302,2]
[401969205,1768427452050,-181.08010149,0.0002302,2]
[401969206,1768427452059,-250.0,0.0002302,2]
[401969207,1768427452069,-151.0,0.0002302,2]
[401969208,1768427452079,-250.0,0.0002302,2]
[401969209,1768427452088,-151.0,0.0002302,2]
[401969210,1768427452101,-187.78006525,0.0002302,2]
[401969211,1768427452111,-250.0,0.0002302,2]
[401969212,1768427452120,-151.0,0.0002302,2]
[401969213,1768427452130,-250.0,0.0002302,2]
[401969214,1768427452139,-151.0,0.0002302,2]
[401969215,1768427452148,-194.72792766,0.0002302,2]
[401969216,1768427452158,-250.0,0.0002302,2]
[401969217,1768427452167,-151.0,0.0002302,2]
[401969218,1768427452176,-250.0,0.0002302,2]
[401969219,1768427452186,-151.0,0.0002302,2]
[401969220,1768427452196,-201.93286099,0.0002302,2]
[401969221,1768427452206,-250.0,0.0002302,2]
[401969222,1768427452216,-151.0,0.0002302,2]
[401969223,1768427452226,-250.0,0.0002302,2]
[401969224,1768427452236,-151.0,0.0002302,2]
[401969225,1768427452245,-209.40437684,0.0002302,2]
[401969226,1768427452255,-250.0,0.0002302,2]
[401969227,1768427452265,-250.0,0.0002302,2]
[401969228,1768427452275,-151.0,0.0002302,2]
[401969229,1768427452285,-250.0,0.0002302,2]
[401969230,1768427452295,-217.15233878,0.0002302,2]
[401969231,1768427452306,-151.0,0.0002302,2]
[401969232,1768427452315,-271.32439801,0.0002302,2]
[401969233,1768427452326,-250.0,0.0002302,2]
[401969234,1768427452335,-151.0,0.0002302,2]
[401969235,1768427452345,-250.0,0.0002302,2]
[401969236,1768427452354,-225.18697532,0.0002302,2]
[401969237,1768427452363,-151.0,0.0002302,2]
[401969238,1768427452373,-255.9181721,0.0002302,2]
[401969239,1768427452382,-151.0,0.0002302,2]
[401969240,1768427452392,-250.0,0.0002302,2]
[401969241,1768427452402,-151.0,0.0002302,2]
[401969242,1768427452411,-233.51889341,0.0002302,2]
[401969243,1768427452421,-250.0,0.0002302,2]
[401969244,1768427452431,-163.79209166,0.0002302,2]
[401969245,1768427452440,-151.0,0.0002302,2]
[401969246,1768427452450,-242.15909246,0.0002302,2]
[401969247,1768427452460,-250.0,0.0002302,2]
[401969248,1768427452470,-151.0,0.0002302,2]
[401969249,1768427452480,-251.11897888,0.0002302,2]
[401969250,1768427452490,-250.0,0.0002302,2]
[401969251,1768427452501,-151.0,0.0002302,2]
[401969252,1768427452511,-260.4103811,0.0002302,2]
[401969253,1768427452521,-30000.0,0.0002302,2]
[401969254,1768427452530,-250.0,0.0002302,2]
[401969255,1768427452540,-245.0,0.0002302,2]
[401969256,1768427452549,-270.0455652,0.0002302,2]
[401969257,1768427452559,-280.03725112,0.0002302,2]
[401969258,1768427452568,-290.39862941,0.0002302,2]
[401969259,1768427452578,-301.1433787,0.0002302,2]
[401969260,1768427452587,-500.0,0.0002302,2]
[401969261,1768427452597,-500.0,0.0002302,2]
[401969262,1768427452606,-500.0,0.0002302,2]
[401969263,1768427452616,-500.0,0.0002302,2]
[401969264,1768427452626,-500.0,0.0002302,2]
[401969265,1768427452635,-500.0,0.0002302,2]
[401969266,1768427452645,-500.0,0.0002302,2]
[401969267,1768427452655,-500.0,0.0002302,2]
[401969268,1768427452666,-500.0,0.0002302,2]
[401969269,1768427452676,-500.0,0.0002302,2]
[401969270,1768427452685,-500.0,0.0002302,2]
[401969271,1768427452695,-500.0,0.0002302,2]
[401969272,1768427452704,-500.0,0.0002302,2]
[401969273,1768427452714,-500.0,0.0002302,2]
[401969274,1768427452723,-500.0,0.0002302,2]
[401969275,1768427452733,-1322.09450288,0.00023053,13]
[401969276,1768427452743,-1322.09450288,0.00023092,15]
[401969277,1768427452752,-1322.09450288,0.00023131,17]
[401969278,1768427452762,-500.0,0.00023139,2]
[401969279,1768427452772,-182.95072115,0.0002315,2]
[401969280,1768427452782,-1322.09450288,0.00023171,19]
[401969281,1768427452792,-499.3,0.000232,2]
[401969282,1768427452802,-1322.09450288,0.0002321,21]
[401969283,1768427452811,-4427.0,0.0002322,2]
[401969284,1768427452821,-500.0,0.00023223,2]
[401969285,1768427452831,-500.0,0.00023236,2]
[401969286,1768427452841,-1322.09450288,0.00023249,24]
[401969287,1768427452851,-800.0,0.00023284,2]
[401969288,1768427452860,-1322.09450288,0.00023289,26]
[401969289,1768427452870,-800.0,0.00023293,2]
[401969290,1768427452880,-1600.0,0.00023307,2]
[401969291,1768427452890,-1322.09450288,0.00023328,28]
[401969292,1768427452900,-900.0,0.00023342,2]
[401969293,1768427452910,-174.45964144,0.00023342,9]
[401969294,1768427452920,-1322.09450288,0.00023367,30]
[401969295,1768427452930,-1322.09450288,0.00023406,32]
[401969296,1768427452940,-800.0,0.00023428,2]
[401969297,1768427452950,-1322.09450288,0.00023446,35]
[401969298,1768427452960,-206.655593,0.00023446,2]
[401969299,1768427452970,-206.655593,0.00023446,2]
[401969300,1768427452980,-206.655593,0.00023446,2]
[401969301,1768427452989,-206.655593,0.00023446,2]
[401969302,1768427452999,-151.0,0.00023446,2]
[401969303,1768427453009,-151.0,0.00023446,2]
[401969304,1768427453021,-1600.0,0.00023448,2]
[401969305,1768427453031,-1600.0,0.00023452,2]
[401969306,1768427453041,-800.0,0.00023476,2]
[401969307,1768427453051,-800.0,0.00023479,2]
[401969308,1768427453062,-1600.0,0.00023483,2]
[401969309,1768427453071,-1322.09450288,0.00023485,37]
[401969310,1768427453085,-800.0,0.0002349,2]
[401969311,1768427453106,-167.77,0.000235,7]
[401969312,1768427453118,-900.0,0.0002351,2]
[401969313,1768427453129,-900.0,0.00023522,2]
[401969314,1768427453141,-151.0,0.00023524,2]
[401969315,1768427453151,-191.596972,0.00023524,2]
[401969316,1768427453162,-191.596972,0.00023524,2]
[401969317,1768427453173,-191.596972,0.00023524,2]
[401969318,1768427453183,-191.596972,0.00023524,2]
[401969319,1768427453194,-1322.09450288,0.00023524,39]
[401969320,1768427453204,-151.0,0.00023526,2]
[401969321,1768427453215,-800.0,0.00023545,2]
[401969322,1768427453226,-900.0,0.00023549,2]
[401969323,1768427453238,-207.237772,0.00023553,2]
[401969324,1768427453249,-207.237772,0.00023553,2]
[401969325,1768427453259,-207.237772,0.00023553,2]
[401969326,1768427453270,-207.237772,0.00023553,2]
[401969327,1768427453280,-293.503999,0.00023553,2]
[401969328,1768427453291,-293.503999,0.00023553,2]
[401969329,1768427453301,-293.503999,0.00023553,2]
[401969330,1768427453312,-293.503999,0.00023553,2]
[401969331,1768427453322,-582.913993,0.00023553,2]
[401969332,1768427453332,-582.913993,0.00023553,2]
[401969333,1768427453344,-582.913993,0.00023553,2]
[401969334,1768427453355,-582.913993,0.00023553,2]
[401969335,1768427453366,-795.987765,0.00023553,2]
[401969336,1768427453376,-795.987765,0.00023553,2]
[401969337,1768427453387,-795.987765,0.00023553,2]
[401969338,1768427453398,-795.987765,0.00023553,2]
[401969339,1768427453409,-600.0,0.00023562,2]
[401969340,1768427453420,-500.0,0.00023562,2]
[401969341,1768427453430,-301.105307,0.00023562,2]
[401969342,1768427453441,-1322.09450288,0.00023564,41]
[401969343,1768427453451,-152.98,0.00023567,2]
[401969344,1768427453462,-478.75725327,0.00023568,2]
[401969345,1768427453471,-2312.83697232,0.00023568,2]
[401969346,1768427453481,-174.61919141,0.00023568,2]
[401969347,1768427453490,-31110.0,0.00023568,2]
[401969348,1768427453500,-800.0,0.00023576,2]
[401969349,1768427453510,-900.0,0.0002359,2]
[401969350,1768427453520,-3915.7,0.000236,14]
[401969351,1768427453530,-223.89,0.000236,7]
[401969352,1768427453540,-196.5,0.000236,7]
[401969353,1768427453550,-2322.78,0.000236,7]
[401969354,1768427453560,-910.867725,0.000236,2]
[401969355,1768427453572,-910.867725,0.000236,2]
[401969356,1768427453583,-179.180636,0.000236,2]
[401969357,1768427453593,-910.867725,0.000236,2]
[401969358,1768427453603,-910.867725,0.000236,2]
[401969359,1768427453615,-151.0,0.000236,2]
[401969360,1768427453632,-151.0,0.000236,2]
[401969361,1768427453642,-151.0,0.000236,2]
[401969362,1768427453651,-151.0,0.000236,2]
[401969363,1768427453661,-1322.09450288,0.00023603,43]
[401969364,1768427453670,-500.0,0.00023613,2]
[401969365,1768427453680,-1600.0,0.00023616,2]
[401969366,1768427453689,-1322.09450288,0.00023642,46]
[401969367,1768427453699,-714.6,0.00023644,2]
[401969368,1768427453709,-190.0,0.00023646,2]
[401969369,1768427453719,-4880.93865903,0.00023676,2]
[401969370,1768427453728,-1322.09450288,0.00023681,48]
[401969371,1768427453738,-4289.84238407,0.000237,14]
[401969372,1768427453748,-29614.9,0.000237,2]
[401969373,1768427453758,-151.0,0.000237,2]
[401969374,1768427453768,-2000.0,0.00023702,7]
[401969375,1768427453777,-900.0,0.00023702,2]
[401969376,1768427453787,-1322.09450288,0.00023721,50]
[401969377,1768427453797,-1322.09450288,0.0002376,52]
[401969378,1768427453807,-475.0,0.00023765,30]
[401969379,1768427453817,-475.0,0.00023765,30]
[401969380,1768427453827,-475.0,0.00023765,30]
[401969381,1768427453837,-475.0,0.00023765,30]
[401969382,1768427453847,-475.0,0.00023765,30]
[401969383,1768427453856,-475.0,0.00023765,30]
[401969384,1768427453866,-475.0,0.00023765,30]
[401969385,1768427453876,-475.0,0.00023765,30]
[401969386,1768427453886,-475.0,0.00023765,30]
[401969387,1768427453898,-475.0,0.00023765,30]
[401969388,1768427453907,-475.0,0.00023765,30]
[401969389,1768427453918,-475.0,0.00023765,30]
[401969390,1768427453927,-475.0,0.00023765,30]
[401969391,1768427453937,-475.0,0.00023765,30]
[401969392,1768427453947,-475.0,0.00023765,30]
[401969393,1768427453957,-475.0,0.00023765,30]
[401969394,1768427453966,-475.0,0.00023765,30]
[401969395,1768427453976,-475.0,0.00023765,30]
[401969396,1768427453986,-475.0,0.00023765,30]
[401969397,1768427453996,-475.0,0.00023765,30]
[401969398,1768427454006,-475.0,0.00023765,30]
[401969399,1768427454018,-475.0,0.00023765,30]
[401969400,1768427454029,-475.0,0.00023765,30]
[401969401,1768427454039,-475.0,0.00023765,30]
[401969402,1768427454049,-475.0,0.00023765,30]
[401969403,1768427454061,-475.0,0.00023765,30]
[401969404,1768427454070,-475.0,0.00023765,30]
[401969405,1768427454080,-475.0,0.00023765,30]
[401969406,1768427454091,-475.0,0.00023765,30]
[401969407,1768427454101,-475.0,0.00023765,30]
[401969408,1768427454111,-475.0,0.00023765,30]
[401969409,1768427454121,-475.0,0.00023765,30]
[401969410,1768427454132,-475.0,0.00023765,30]
[401969411,1768427454142,-475.0,0.00023765,30]
[401969412,1768427454152,-475.0,0.00023765,30]
[401969413,1768427454162,-475.0,0.00023765,30]
[401969414,1768427454172,-475.0,0.00023765,30]
[401969415,1768427454182,-475.0,0.00023765,30]
[401969416,1768427454192,-475.0,0.00023765,30]
[401969417,1768427454201,-475.0,0.00023765,30]
[401969418,1768427454211,-475.0,0.00023765,30]
[401969419,1768427454221,-475.0,0.00023765,30]
[401969420,1768427454230,-475.0,0.00023765,30]
[401969421,1768427454241,-475.0,0.00023765,30]
[401969422,1768427454251,-800.0,0.00023768,2]
[401969423,1768427454261,-800.0,0.00023799,2]
[401969424,1768427454271,-1322.09450288,0.00023799,54]
[401969425,1768427454280,-475.0,0.00023806,30]
[401969426,1768427454290,-2000.0,0.00023806,30]
[401969427,1768427454300,-2000.0,0.00023806,30]
[401969428,1768427454310,-996.312,0.00023806,30]
[401969429,1768427454319,-500.0,0.00023837,2]
[401969430,1768427454330,-1322.09450288,0.00023839,57]
[401969431,1768427454340,-1600.0,0.00023841,2]
[401969432,1768427454350,-900.0,0.00023859,2]
[401969433,1768427454360,-900.0,0.00023866,2]
[401969434,1768427454370,-1322.09450288,0.00023878,59]
[401969435,1768427454381,-200.0,0.00023887,2]
[401969436,1768427454392,-241.0,0.0002389,11]
[401969437,1768427454404,-475.0,0.00023899,30]
[401969438,1768427454416,-475.0,0.00023899,30]
[401969439,1768427454426,-1000.0,0.00023899,30]
[401969440,1768427454435,-1000.0,0.00023899,30]
[401969441,1768427454446,-1000.0,0.00023899,30]
[401969442,1768427454456,-1000.0,0.00023899,30]
[401969443,1768427454466,-1000.0,0.00023899,30]
[401969444,1768427454476,-800.0,0.00023905,2]
[401969445,1768427454486,-500.0,0.00023914,2]
[401969446,1768427454619,-1322.09450288,0.00023917,61]
[401969447,1768427454646,-800.0,0.00023953,2]
[401969448,1768427454656,-151.0,0.00023956,2]
[401969449,1768427454666,-151.0,0.00023956,2]
[401969450,1768427454676,-593.168376,0.00023956,2]
[401969451,1768427454688,-593.168376,0.00023956,2]
[401969452,1768427454697,-593.168376,0.00023956,2]
[401969453,1768427454707,-593.168376,0.00023956,2]
[401969454,1768427454717,-151.0,0.00023956,2]
[401969455,1768427454726,-1322.09450288,0.00023956,63]
[401969456,1768427454736,-200.0,0.00023959,2]
[401969457,1768427454745,-800.0,0.00023966,2]
[401969458,1768427454756,-900.0,0.00023972,2]
[401969459,1768427454767,-900.0,0.00023979,2]
[401969460,1768427454777,-1600.0,0.00023983,2]
[401969461,1768427454786,-1322.09450288,0.00023996,65]
[401969462,1768427454795,-800.0,0.00023997,2]
[401969463,1768427454805,-128967.02373672,0.00024,2]
[401969464,1768427454815,-1931.32974169,0.00024,60]
[401969465,1768427454826,-1736.447596,0.00024,2]
[401969466,1768427454835,-465.90719096,0.00024,2]
[401969467,1768427454845,-1041.66666667,0.00024,7]
[401969468,1768427454854,-151.0,0.00024,2]
[401969469,1768427454864,-151.0,0.00024,2]
[401969470,1768427454873,-191.596972,0.00024,2]
[401969471,1768427454882,-191.596972,0.00024,2]
[401969472,1768427454892,-191.596972,0.00024,2]
[401969473,1768427454901,-191.596972,0.00024,2]
[401969474,1768427454911,-282.150442,0.00024,2]
[401969475,1768427454920,-282.150442,0.00024,2]
[401969476,1768427454930,-282.150442,0.00024,2]
[401969477,1768427454939,-282.150445,0.00024,2]
[401969478,1768427454949,-151.0,0.00024,2]
[401969479,1768427454959,-151.0,0.00024,2]
[401969480,1768427454967,-151.0,0.00024,2]
[401969481,1768427454977,-151.0,0.00024,2]
[401969482,1768427454986,-151.0,0.00024,2]
[401969483,1768427454997,-151.0,0.00024,2]
[401969484,1768427455006,-151.0,0.00024,2]
[401969485,1768427455020,-151.0,0.00024,2]
[401969486,1768427455030,-151.0,0.00024,2]
[401969487,1768427455040,-847.432412,0.00024,2]
[401969488,1768427455049,-847.432412,0.00024,2]
[401969489,1768427455058,-847.432412,0.00024,2]
[401969490,1768427455068,-847.432412,0.00024,2]
[401969491,1768427455077,-683.587352,0.00024,2]
[401969492,1768427455087,-683.587352,0.00024,2]
[401969493,1768427455098,-1770.408967,0.00024,2]
[401969494,1768427455108,-683.587352,0.00024,2]
[401969495,1768427455117,-1770.408967,0.00024,2]
[401969496,1768427455126,-683.587352,0.00024,2]
[401969497,1768427455135,-1770.408967,0.00024,2]
[401969498,1768427455145,-1770.408967,0.00024,2]
[401969499,1768427455154,-263.265987,0.00024,2]
[401969500,1768427455164,-263.265987,0.00024,2]
[401969501,1768427455174,-151.0,0.00024,2]
[401969502,1768427455184,-263.265987,0.00024,2]
[401969503,1768427455193,-151.0,0.00024,2]
[401969504,1768427455203,-263.265987,0.00024,2]
[401969505,1768427455212,-151.0,0.00024,2]
[401969506,1768427455221,-151.0,0.00024,2]
[401969507,1768427455230,-151.0,0.00024,2]
[401969508,1768427455239,-251.333704,0.00024,2]
[401969509,1768427455248,-151.0,0.00024,2]
[401969510,1768427455257,-151.0,0.00024,2]
[401969511,1768427455267,-151.0,0.00024,2]
[401969512,1768427455275,-151.0,0.00024,2]
[401969513,1768427455284,-151.0,0.00024,2]
[401969514,1768427455293,-186.591978,0.00024,2]
[401969515,1768427455302,-186.591978,0.00024,2]
[401969516,1768427455311,-186.591978,0.00024,2]
[401969517,1768427455320,-186.591978,0.00024,2]
[401969518,1768427455329,-151.0,0.00024,2]
[401969519,1768427455338,-151.0,0.00024,2]
[401969520,1768427455348,-900.0,0.00024015,2]
[401969521,1768427455357,-475.0,0.00024027,30]
[401969522,1768427455366,-475.0,0.00024027,30]
[401969523,1768427455375,-475.0,0.00024027,30]
[401969524,1768427455384,-1322.09450288,0.00024035,68]
[401969525,1768427455393,-500.0,0.00024053,2]
[401969526,1768427455402,-900.0,0.00024055,2]
[401969527,1768427455413,-1600.0,0.0002406,2]
[401969528,1768427455422,-1322.09450288,0.00024074,70]
[401969529,1768427455432,-500.0,0.00024089,2]
[401969530,1768427455442,-500.0,0.00024089,2]
[401969531,1768427455452,-500.0,0.00024089,2]
[401969532,1768427455461,-350.00260819,0.00024089,2]
[401969533,1768427455470,-475.0,0.00024103,30]
[401969534,1768427455479,-750.0,0.0002411,2]
[401969535,1768427455491,-401.4141805,0.0002411,2]
[401969536,1768427455501,-206.655593,0.0002411,2]
[401969537,1768427455512,-206.655593,0.0002411,2]
[401969538,1768427455523,-206.655593,0.0002411,2]
[401969539,1768427455532,-206.655592,0.0002411,2]
[401969540,1768427455543,-151.0,0.0002411,2]
[401969541,1768427455554,-151.0,0.0002411,2]
[401969542,1768427455565,-1322.09450288,0.00024114,72]
[401969543,1768427455575,-475.0,0.00024114,30]
[401969544,1768427455584,-475.0,0.00024114,30]
[401969545,1768427455595,-475.0,0.00024114,30]
[401969546,1768427455605,-207.237772,0.00024116,2]
[401969547,1768427455614,-207.237772,0.00024116,2]
[401969548,1768427455624,-207.237772,0.00024116,2]
[401969549,1768427455635,-207.237781,0.00024116,2]
[401969550,1768427455646,-293.503999,0.00024116,2]
[401969551,1768427455656,-293.503999,0.00024116,2]
[401969552,1768427455666,-293.503999,0.00024116,2]
[401969553,1768427455676,-293.50399,0.00024116,2]
[401969554,1768427455685,-582.913993,0.00024116,2]
[401969555,1768427455694,-582.913993,0.00024116,2]
[401969556,1768427455704,-582.913993,0.00024116,2]
[401969557,1768427455715,-582.914002,0.00024116,2]
[401969558,1768427455725,-795.987765,0.00024116,2]
[401969559,1768427455735,-795.987765,0.00024116,2]
[401969560,1768427455745,-795.987765,0.00024116,2]
[401969561,1768427455756,-795.987771,0.00024116,2]
[401969562,1768427455766,-496.47127164,0.00024116,2]
[401969563,1768427455777,-2398.4119403,0.00024116,2]
[401969564,1768427455786,-181.08010149,0.00024116,2]
[401969565,1768427455797,-32261.07,0.00024116,2]
[401969566,1768427455807,-475.0,0.00024142,30]
[401969567,1768427455818,-475.0,0.00024142,30]
[401969568,1768427455828,-477972.68394232,0.00024142,2]
[401969569,1768427455838,-151.0,0.00024142,2]
[401969570,1768427455849,-151.0,0.00024142,2]
[401969571,1768427455859,-151.0,0.00024142,2]
[401969572,1768427455871,-151.0,0.00024142,2]
[401969573,1768427455885,-191.596972,0.00024142,2]
[401969574,1768427455896,-191.596972,0.00024142,2]
[401969575,1768427455906,-191.596972,0.00024142,2]
[401969576,1768427455915,-191.596979,0.00024142,2]
[401969577,1768427455925,-910.867725,0.00024142,2]
[401969578,1768427455935,-910.867725,0.00024142,2]
[401969579,1768427455944,-910.867725,0.00024142,2]
[401969580,1768427455953,-910.867725,0.00024142,2]
[401969581,1768427455963,-151.0,0.00024142,2]
[401969582,1768427455972,-235.000068,0.00024142,2]
[401969583,1768427455982,-151.0,0.00024142,2]
[401969584,1768427455991,-151.0,0.00024142,2]
[401969585,1768427456001,-151.0,0.00024142,2]
[401969586,1768427456010,-847.432412,0.00024142,2]
[401969587,1768427456023,-847.432412,0.00024142,2]
[401969588,1768427456033,-847.432412,0.00024142,2]
[401969589,1768427456044,-847.432417,0.00024142,2]
[401969590,1768427456055,-683.587352,0.00024142,2]
[401969591,1768427456066,-683.587352,0.00024142,2]
[401969592,1768427456076,-1770.408967,0.00024142,2]
[401969593,1768427456085,-683.587352,0.00024142,2]
[401969594,1768427456097,-1770.408967,0.00024142,2]
[401969595,1768427456108,-683.587349,0.00024142,2]
[401969596,1768427456118,-1770.408967,0.00024142,2]
[401969597,1768427456129,-1770.408958,0.00024142,2]
[401969598,1768427456139,-263.265987,0.00024142,2]
[401969599,1768427456148,-263.265987,0.00024142,2]
[401969600,1768427456158,-151.0,0.00024142,2]
[401969601,1768427456167,-263.265987,0.00024142,2]
[401969602,1768427456177,-151.0,0.00024142,2]
[401969603,1768427456186,-263.265979,0.00024142,2]
[401969604,1768427456195,-272.028283,0.00024142,2]
[401969605,1768427456204,-189.060693,0.00024142,2]
[401969606,1768427456214,-151.0,0.00024142,2]
[401969607,1768427456227,-151.0,0.00024142,2]
[401969608,1768427456235,-217.272847,0.00024142,2]
[401969609,1768427456245,-151.0,0.00024142,2]
[401969610,1768427456254,-151.0,0.00024142,2]
[401969611,1768427456264,-186.591978,0.00024142,2]
[401969612,1768427456273,-186.591978,0.00024142,2]
[401969613,1768427456284,-186.591978,0.00024142,2]
[401969614,1768427456293,-186.591982,0.00024142,2]
[401969615,1768427456303,-593.168376,0.00024142,2]
[401969616,1768427456312,-593.168376,0.00024142,2]
[401969617,1768427456321,-593.168376,0.00024142,2]
[401969618,1768427456330,-593.168385,0.00024142,2]
[401969619,1768427456339,-300.452852,0.00024142,2]
[401969620,1768427456348,-151.0,0.00024142,2]
[401969621,1768427456357,-1600.0,0.00024144,2]
[401969622,1768427456366,-900.0,0.00024145,2]
[401969623,1768427456376,-900.0,0.00024147,2]
[401969624,1768427456385,-1322.09450288,0.00024153,74]
[401969625,1768427456394,-1082.98429516,0.00024161,2]
[401969626,1768427456403,-4499.1178549,0.00024166,2]